[Event "*** Titled Tuesday Blitz"]
[Site "Chess.com"]
[Date "2018.01.02"]
[Round "10"]
[White "ZapataCharlesS"]
[Black "GMKrikor"]
[Result "1-0"]
[WhiteElo "2657"]
[BlackElo "2671"]
[TimeControl "180+2"]
[EndTime "15:13:57 PST"]
[Termination "ZapataCharlesS won on time"]

1. e4 {[%clk 0:03:01.8]} 1... e5 {[%clk 0:03:00.8]} 2. Nf3 {[%clk 0:03:02.4]}
2... Nc6 {[%clk 0:03:02.1]} 3. d4 {[%clk 0:03:00.5]} 3... exd4 {[%clk 0:03:03]}
4. Bc4 {[%clk 0:03:01.2]} 4... Nf6 {[%clk 0:03:01.3]} 5. O-O {[%clk 0:03:01.4]}
5... Nxe4 {[%clk 0:02:57.4]} 6. Nc3 {[%clk 0:03:02.4]} 6... Nxc3 {[%clk
0:02:20.8]} 7. bxc3 {[%clk 0:02:58.5]} 7... d5 {[%clk 0:02:17.3]} 8. Bb5 {[%clk
0:02:56.2]} 8... Be7 {[%clk 0:02:18.3]} 9. Ne5 {[%clk 0:02:49.8]} 9... Bd7
{[%clk 0:02:19.4]} 10. Nxd7 {[%clk 0:02:44.6]} 10... Qxd7 {[%clk 0:02:19.7]} 11.
cxd4 {[%clk 0:02:44.6]} 11... O-O {[%clk 0:02:17.8]} 12. c3 {[%clk 0:02:42.8]}
12... Bd6 {[%clk 0:02:13]} 13. Qf3 {[%clk 0:02:36.8]} 13... a6 {[%clk
0:02:02.2]} 14. Bd3 {[%clk 0:02:37.5]} 14... Ne7 {[%clk 0:01:53.9]} 15. Re1
{[%clk 0:02:35.4]} 15... Rae8 {[%clk 0:01:43.3]} 16. Bg5 {[%clk 0:02:30.2]}
16... c6 {[%clk 0:01:34.2]} 17. g3 {[%clk 0:02:19.7]} 17... Ng6 {[%clk
0:01:14.9]} 18. Bf5 {[%clk 0:02:05.7]} 18... Qc7 {[%clk 0:01:16]} 19. h4 {[%clk
0:02:05.1]} 19... Ne7 {[%clk 0:00:38.3]} 20. Bd3 {[%clk 0:02:03.5]} 20... Qd7
{[%clk 0:00:23.7]} 21. a4 {[%clk 0:01:56.4]} 21... f5 {[%clk 0:00:21]} 22. h5
{[%clk 0:01:57.3]} 22... g6 {[%clk 0:00:19.5]} 23. Bh6 {[%clk 0:01:51.2]} 23...
Rf7 {[%clk 0:00:18.3]} 24. Ra2 {[%clk 0:01:27.7]} 24... Nc8 {[%clk 0:00:19.2]}
25. Rxe8+ {[%clk 0:01:25]} 25... Qxe8 {[%clk 0:00:20.2]} 26. c4 {[%clk 0:01:23]}
26... Bf8 {[%clk 0:00:15.2]} 27. Bg5 {[%clk 0:01:10.3]} 27... Qd7 {[%clk
0:00:15.6]} 28. c5 {[%clk 0:01:06.8]} 28... Be7 {[%clk 0:00:13.3]} 29. Be3
{[%clk 0:01:08]} 29... Bf6 {[%clk 0:00:13.3]} 30. Rb2 {[%clk 0:01:08.4]} 30...
Qe8 {[%clk 0:00:11.1]} 31. hxg6 {[%clk 0:01:06.6]} 31... hxg6 {[%clk 0:00:11.7]}
32. g4 {[%clk 0:01:07.7]} 32... Bg7 {[%clk 0:00:08.7]} 33. Kg2 {[%clk
0:01:04.6]} 33... Qd7 {[%clk 0:00:06.7]} 34. g5 {[%clk 0:00:59.2]} 34... Ne7
{[%clk 0:00:05.3]} 35. Qf4 {[%clk 0:00:54.8]} 35... Rf8 {[%clk 0:00:04.3]} 36.
Qd6 {[%clk 0:00:53.6]} 36... Qxd6 {[%clk 0:00:03]} 37. cxd6 {[%clk 0:00:54.7]}
37... Nc8 {[%clk 0:00:04.9]} 38. d7 {[%clk 0:00:54.3]} 38... Nd6 {[%clk
0:00:06]} 39. Bf4 {[%clk 0:00:51.5]} 39... Nf7 {[%clk 0:00:03.4]} 40. Rxb7
{[%clk 0:00:45.2]} 40... Bxd4 {[%clk 0:00:04.7]} 41. Bxa6 {[%clk 0:00:39.7]}
41... Be5 {[%clk 0:00:05.9]} 42. Bxe5 {[%clk 0:00:38.3]} 42... Nxe5 {[%clk
0:00:07.1]} 43. f4 {[%clk 0:00:37.4]} 43... Nf7 {[%clk 0:00:05.2]} 44. Rc7
{[%clk 0:00:37.7]} 44... Nd8 {[%clk 0:00:04.9]} 45. Bb7 {[%clk 0:00:32.2]} 45...
Kf7 {[%clk 0:00:03.7]} 46. a5 {[%clk 0:00:32.6]} 46... Ke7 {[%clk 0:00:05.2]}
47. a6 {[%clk 0:00:25.2]} 47... Nxb7 {[%clk 0:00:03.5]} 48. axb7 {[%clk
0:00:20.3]} 48... Rb8 {[%clk 0:00:04.7]} 49. Rc8 {[%clk 0:00:21.4]} 1-0

[Event "*** Titled Tuesday Blitz"]
[Site "Chess.com"]
[Date "2018.01.02"]
[Round "10"]
[White "eldur16"]
[Black "chessdjw"]
[Result "1-0"]
[WhiteElo "2523"]
[BlackElo "2513"]
[TimeControl "180+2"]
[EndTime "15:14:05 PST"]
[Termination "eldur16 won by checkmate"]

1. c4 {[%clk 0:03:01.9]} 1... g6 {[%clk 0:03:00.6]} 2. Nc3 {[%clk 0:03:01.9]}
2... Bg7 {[%clk 0:03:01]} 3. g3 {[%clk 0:03:02.9]} 3... c5 {[%clk 0:03:00.9]} 4.
Bg2 {[%clk 0:03:02.4]} 4... Nc6 {[%clk 0:03:02.5]} 5. e3 {[%clk 0:03:02.9]} 5...
h5 {[%clk 0:03:00.7]} 6. Nf3 {[%clk 0:03:00.4]} 6... d6 {[%clk 0:02:57.1]} 7. a3
{[%clk 0:03:00.6]} 7... a5 {[%clk 0:02:47]} 8. b3 {[%clk 0:02:55.9]} 8... Bxc3
{[%clk 0:02:43.2]} 9. dxc3 {[%clk 0:02:56.3]} 9... Bf5 {[%clk 0:02:44.8]} 10.
O-O {[%clk 0:02:51.6]} 10... Qd7 {[%clk 0:02:45.7]} 11. Re1 {[%clk 0:02:47.9]}
11... Nf6 {[%clk 0:02:46.5]} 12. Ng5 {[%clk 0:02:40.4]} 12... h4 {[%clk
0:02:40.7]} 13. e4 {[%clk 0:02:40.5]} 13... Bg4 {[%clk 0:02:40.2]} 14. f3 {[%clk
0:02:39.3]} 14... hxg3 {[%clk 0:02:37.9]} 15. hxg3 {[%clk 0:02:38.5]} 15... Be6
{[%clk 0:02:36.2]} 16. Be3 {[%clk 0:02:32.1]} 16... a4 {[%clk 0:02:26.5]} 17.
bxa4 {[%clk 0:02:04.5]} 17... Bxc4 {[%clk 0:02:22.8]} 18. Rb1 {[%clk 0:02:04.5]}
18... Ne5 {[%clk 0:02:13.7]} 19. Rb6 {[%clk 0:01:53.5]} 19... O-O {[%clk
0:01:34.2]} 20. f4 {[%clk 0:01:49.5]} 20... Neg4 {[%clk 0:01:31.7]} 21. Bc1
{[%clk 0:01:47.4]} 21... Qxa4 {[%clk 0:01:24.4]} 22. Qxa4 {[%clk 0:01:39.3]}
22... Rxa4 {[%clk 0:01:24.9]} 23. Rxb7 {[%clk 0:01:40.2]} 23... e5 {[%clk
0:00:40.2]} 24. Bf3 {[%clk 0:01:39.9]} 24... Rfa8 {[%clk 0:00:35.2]} 25. Rd1
{[%clk 0:01:31.7]} 25... R4a6 {[%clk 0:00:33.3]} 26. Kg2 {[%clk 0:01:30.8]}
26... Kg7 {[%clk 0:00:25.7]} 27. f5 {[%clk 0:01:21]} 27... gxf5 {[%clk
0:00:24.4]} 28. exf5 {[%clk 0:01:21.4]} 28... d5 {[%clk 0:00:25.9]} 29. Ne6+
{[%clk 0:01:17.3]} 29... Kg8 {[%clk 0:00:26.9]} 30. Nxc5 {[%clk 0:01:16.3]}
30... R6a7 {[%clk 0:00:28.3]} 31. Rb4 {[%clk 0:01:05.5]} 31... Rc7 {[%clk
0:00:26]} 32. Nb7 {[%clk 0:01:02]} 32... Ba6 {[%clk 0:00:20.5]} 33. Nd6 {[%clk
0:00:54]} 33... e4 {[%clk 0:00:21.5]} 34. Bxg4 {[%clk 0:00:53.3]} 34... Nxg4
{[%clk 0:00:23.4]} 35. Rxd5 {[%clk 0:00:49.3]} 35... Rxc3 {[%clk 0:00:22.2]} 36.
Bb2 {[%clk 0:00:48.3]} 36... Rc2+ {[%clk 0:00:22.4]} 37. Kh3 {[%clk 0:00:48.2]}
37... Be2 {[%clk 0:00:10.9]} 38. Ra5 {[%clk 0:00:45]} 38... Rf8 {[%clk
0:00:10.1]} 39. Nxe4 {[%clk 0:00:40]} 39... Bf3 {[%clk 0:00:09.7]} 40. Nf6+
{[%clk 0:00:34.2]} 40... Nxf6 {[%clk 0:00:10.2]} 41. Bxf6 {[%clk 0:00:34.3]}
41... Rc6 {[%clk 0:00:08.1]} 42. Bg5 {[%clk 0:00:30]} 42... f6 {[%clk
0:00:09.6]} 43. Bf4 {[%clk 0:00:28.6]} 43... Rf7 {[%clk 0:00:10.3]} 44. Rb8+
{[%clk 0:00:23.9]} 44... Kg7 {[%clk 0:00:11.6]} 45. g4 {[%clk 0:00:22.4]} 45...
Rc3 {[%clk 0:00:12.1]} 46. Kh4 {[%clk 0:00:22.1]} 46... Rd7 {[%clk 0:00:13.1]}
47. Re8 {[%clk 0:00:19.8]} 47... Rc4 {[%clk 0:00:14.3]} 48. Kg3 {[%clk
0:00:19.4]} 48... Bd1 {[%clk 0:00:15.5]} 49. Raa8 {[%clk 0:00:11.4]} 49... Rd3+
{[%clk 0:00:14.9]} 50. Kh4 {[%clk 0:00:11.5]} 50... Rxf4 {[%clk 0:00:15.7]} 51.
Re7+ {[%clk 0:00:11.2]} 51... Kh6 {[%clk 0:00:16.8]} 52. Rh8# {[%clk 0:00:10.8]}
1-0

[Event "*** Titled Tuesday Blitz"]
[Site "Chess.com"]
[Date "2018.01.02"]
[Round "10"]
[White "1e41-0"]
[Black "dawtonlms"]
[Result "0-1"]
[WhiteElo "2354"]
[BlackElo "2401"]
[TimeControl "180+2"]
[EndTime "15:14:12 PST"]
[Termination "dawtonlms won by checkmate"]

1. d4 {[%clk 0:03:01.9]} 1... Nf6 {[%clk 0:03:00.8]} 2. c4 {[%clk 0:03:02.9]}
2... e6 {[%clk 0:03:01.4]} 3. Nc3 {[%clk 0:03:03.8]} 3... d5 {[%clk 0:03:01.2]}
4. cxd5 {[%clk 0:03:04.2]} 4... exd5 {[%clk 0:03:01.6]} 5. Bg5 {[%clk 0:03:05]}
5... Be7 {[%clk 0:03:02.8]} 6. e3 {[%clk 0:03:06.1]} 6... Nbd7 {[%clk
0:03:03.1]} 7. Bd3 {[%clk 0:03:06.7]} 7... Nf8 {[%clk 0:03:04.3]} 8. Nge2 {[%clk
0:03:05.4]} 8... Ne6 {[%clk 0:03:05.5]} 9. Bh4 {[%clk 0:03:06.1]} 9... g6 {[%clk
0:03:05]} 10. Qc2 {[%clk 0:03:06]} 10... Ng7 {[%clk 0:03:06.2]} 11. O-O {[%clk
0:02:21.2]} 11... Bf5 {[%clk 0:03:02.7]} 12. Bg3 {[%clk 0:02:15.4]} 12... Bxd3
{[%clk 0:03:00.3]} 13. Qxd3 {[%clk 0:02:17.3]} 13... c6 {[%clk 0:02:58.5]} 14.
Be5 {[%clk 0:02:17.2]} 14... O-O {[%clk 0:02:59]} 15. Rae1 {[%clk 0:02:15.2]}
15... Re8 {[%clk 0:03:00.1]} 16. Ng3 {[%clk 0:02:15.9]} 16... Bd6 {[%clk
0:02:57.1]} 17. Bxd6 {[%clk 0:02:15.9]} 17... Qxd6 {[%clk 0:02:58.1]} 18. f3
{[%clk 0:02:15.3]} 18... Rad8 {[%clk 0:02:58.2]} 19. a3 {[%clk 0:02:05.4]} 19...
h5 {[%clk 0:02:58.5]} 20. b4 {[%clk 0:02:05.7]} 20... h4 {[%clk 0:02:59.4]} 21.
Nh1 {[%clk 0:02:06.9]} 21... Nf5 {[%clk 0:03:00.5]} 22. Re2 {[%clk 0:02:03.2]}
22... a5 {[%clk 0:02:51.1]} 23. Rb1 {[%clk 0:01:57.6]} 23... Kg7 {[%clk
0:02:49.6]} 24. Nf2 {[%clk 0:01:55.9]} 24... Re7 {[%clk 0:02:37.1]} 25. Rb3
{[%clk 0:01:32.9]} 25... axb4 {[%clk 0:02:29.2]} 26. axb4 {[%clk 0:01:32.1]}
26... Qd7 {[%clk 0:02:29.8]} 27. b5 {[%clk 0:01:28]} 27... Nd6 {[%clk
0:02:30.2]} 28. bxc6 {[%clk 0:01:27.1]} 28... bxc6 {[%clk 0:02:32.1]} 29. Na4
{[%clk 0:01:21]} 29... Qa7 {[%clk 0:02:26.4]} 30. Nc5 {[%clk 0:01:21.8]} 30...
Rde8 {[%clk 0:02:25.6]} 31. Nd1 {[%clk 0:01:20.7]} 31... Nf5 {[%clk 0:02:23.9]}
32. Kf2 {[%clk 0:01:18.6]} 32... Qc7 {[%clk 0:02:21.4]} 33. Kg1 {[%clk
0:01:17.5]} 33... Qa7 {[%clk 0:02:19]} 34. Kf2 {[%clk 0:01:18]} 34... Qc7 {[%clk
0:02:19.8]} 35. Kg1 {[%clk 0:01:18.7]} 35... Nh5 {[%clk 0:02:16.4]} 36. e4
{[%clk 0:01:13.7]} 36... Nf4 {[%clk 0:02:16.8]} 37. Qd2 {[%clk 0:01:09.1]} 37...
Nxe2+ {[%clk 0:02:17.8]} 38. Qxe2 {[%clk 0:01:11]} 38... Nxd4 {[%clk 0:02:17.6]}
39. Qb2 {[%clk 0:01:11.8]} 39... Qe5 {[%clk 0:02:18.4]} 40. Nd3 {[%clk
0:01:12.9]} 40... Qf6 {[%clk 0:02:13.9]} 41. e5 {[%clk 0:01:14]} 41... Rxe5
{[%clk 0:02:12.8]} 42. Nxe5 {[%clk 0:01:14.6]} 42... Qxe5 {[%clk 0:02:11.5]} 43.
Re3 {[%clk 0:01:11.1]} 43... Nxf3+ {[%clk 0:01:33.5]} 44. Rxf3 {[%clk 0:01:13]}
44... d4 {[%clk 0:01:27.2]} 45. Qb3 {[%clk 0:01:04.8]} 45... Re7 {[%clk
0:01:27]} 46. h3 {[%clk 0:01:05.9]} 46... c5 {[%clk 0:01:27.8]} 47. Nf2 {[%clk
0:01:06.2]} 47... Qe1+ {[%clk 0:01:25.8]} 48. Kh2 {[%clk 0:01:06.7]} 48... Qe5+
{[%clk 0:01:24.2]} 49. Kg1 {[%clk 0:01:07.5]} 49... Qe2 {[%clk 0:01:18.3]} 50.
Qd3 {[%clk 0:00:59]} 50... Qxd3 {[%clk 0:01:11.5]} 51. Rxd3 {[%clk 0:01:00.9]}
51... f5 {[%clk 0:01:09.2]} 52. Kf1 {[%clk 0:00:59.7]} 52... Kf6 {[%clk
0:01:10.2]} 53. Ra3 {[%clk 0:01:00.7]} 53... Ke5 {[%clk 0:01:11.1]} 54. Ra5
{[%clk 0:01:00.7]} 54... Kd5 {[%clk 0:01:10.4]} 55. Nd3 {[%clk 0:01:01.6]} 55...
Rc7 {[%clk 0:01:11.1]} 56. Nf4+ {[%clk 0:01:02.8]} 56... Ke4 {[%clk 0:01:12.1]}
57. Nxg6 {[%clk 0:01:03.2]} 57... c4 {[%clk 0:01:13.3]} 58. Ke2 {[%clk
0:01:04.4]} 58... d3+ {[%clk 0:01:14]} 59. Kf2 {[%clk 0:01:02.4]} 59... c3
{[%clk 0:01:14.5]} 60. Ne5 {[%clk 0:01:00.1]} 60... c2 {[%clk 0:01:12.3]} 61.
Nf3 {[%clk 0:00:51.9]} 61... c1=Q {[%clk 0:01:08.7]} 62. Ra4+ {[%clk 0:00:52.7]}
62... Kd5 {[%clk 0:01:05.9]} 63. Rxh4 {[%clk 0:00:53.8]} 63... f4 {[%clk
0:01:03.8]} 64. Rh5+ {[%clk 0:00:53.1]} 64... Kd6 {[%clk 0:01:05]} 65. Rh6+
{[%clk 0:00:54.2]} 65... Ke7 {[%clk 0:01:05.9]} 66. Rh7+ {[%clk 0:00:55.2]}
66... Kf8 {[%clk 0:01:07.1]} 67. Rh8+ {[%clk 0:00:46.9]} 67... Kg7 {[%clk
0:01:07.3]} 68. Re8 {[%clk 0:00:47.5]} 68... Rc2+ {[%clk 0:01:07]} 69. Nd2
{[%clk 0:00:49]} 69... Qxd2+ {[%clk 0:01:07.4]} 70. Kf3 {[%clk 0:00:50.9]} 70...
Qf2+ {[%clk 0:01:08.5]} 71. Kg4 {[%clk 0:00:51.6]} 71... Qg3+ {[%clk 0:01:09.2]}
72. Kf5 {[%clk 0:00:53.5]} 72... f3 {[%clk 0:01:10.3]} 73. Re7+ {[%clk
0:00:54.1]} 73... Kf8 {[%clk 0:01:11.2]} 74. Ra7 {[%clk 0:00:55.3]} 74... Rc5+
{[%clk 0:01:11.9]} 75. Kf6 {[%clk 0:00:57.2]} 75... Qg5+ {[%clk 0:01:11.9]} 76.
Ke6 {[%clk 0:00:58.5]} 76... Qe5+ {[%clk 0:01:13.2]} 77. Kd7 {[%clk 0:01:00.3]}
77... Rd5+ {[%clk 0:01:12.6]} 78. Kc6 {[%clk 0:01:01.5]} 78... Qe6+ {[%clk
0:01:12.5]} 79. Kb7 {[%clk 0:01:03.4]} 79... Rd7+ {[%clk 0:01:13.5]} 80. Kc8
{[%clk 0:01:03.4]} 80... Qe8# {[%clk 0:01:14.5]} 0-1

[Event "*** Titled Tuesday Blitz"]
[Site "Chess.com"]
[Date "2018.01.02"]
[Round "10"]
[White "SmoothAsAHedgehog"]
[Black "Robert_Chessmood"]
[Result "1-0"]
[WhiteElo "2562"]
[BlackElo "2709"]
[TimeControl "180+2"]
[EndTime "15:14:50 PST"]
[Termination "SmoothAsAHedgehog won on time"]

1. Nf3 {[%clk 0:02:59.8]} 1... d5 {[%clk 0:03:00]} 2. c4 {[%clk 0:03:00.4]} 2...
c6 {[%clk 0:02:59.7]} 3. g3 {[%clk 0:03:00.3]} 3... Bg4 {[%clk 0:03:00.1]} 4.
Ne5 {[%clk 0:02:58.3]} 4... Bf5 {[%clk 0:02:57.9]} 5. Bg2 {[%clk 0:02:56.7]}
5... e6 {[%clk 0:02:56.8]} 6. cxd5 {[%clk 0:02:56]} 6... exd5 {[%clk 0:02:56.1]}
7. O-O {[%clk 0:02:56.7]} 7... Nd7 {[%clk 0:02:54.5]} 8. Nf3 {[%clk 0:02:56.4]}
8... Ngf6 {[%clk 0:02:53.6]} 9. d3 {[%clk 0:02:57.8]} 9... Be7 {[%clk
0:02:50.3]} 10. Nc3 {[%clk 0:02:59.3]} 10... O-O {[%clk 0:02:49.9]} 11. Nh4
{[%clk 0:02:49.2]} 11... Be6 {[%clk 0:02:47]} 12. e4 {[%clk 0:02:49.6]} 12...
dxe4 {[%clk 0:02:47.7]} 13. dxe4 {[%clk 0:02:50.7]} 13... Nc5 {[%clk 0:02:49.2]}
14. Nf5 {[%clk 0:02:37]} 14... Bxf5 {[%clk 0:02:43.6]} 15. exf5 {[%clk
0:02:38.9]} 15... Nd3 {[%clk 0:02:41.4]} 16. Be3 {[%clk 0:02:28.6]} 16... Bc5
{[%clk 0:02:27.7]} 17. Bxc5 {[%clk 0:02:18]} 17... Nxc5 {[%clk 0:02:29.6]} 18.
b4 {[%clk 0:02:15]} 18... Nd3 {[%clk 0:02:01.8]} 19. b5 {[%clk 0:02:11.7]} 19...
cxb5 {[%clk 0:01:57.9]} 20. Nxb5 {[%clk 0:02:06.7]} 20... Qd7 {[%clk 0:01:55.8]}
21. Nc3 {[%clk 0:02:02.7]} 21... Rac8 {[%clk 0:01:43.8]} 22. Ne4 {[%clk
0:02:00.7]} 22... b6 {[%clk 0:01:39.9]} 23. Nxf6+ {[%clk 0:01:57.5]} 23... gxf6
{[%clk 0:01:41.8]} 24. Qg4+ {[%clk 0:01:57.6]} 24... Kh8 {[%clk 0:01:42.8]} 25.
Rad1 {[%clk 0:01:58]} 25... Ne5 {[%clk 0:01:26.4]} 26. Rxd7 {[%clk 0:01:42.6]}
26... Nxg4 {[%clk 0:01:27.4]} 27. Rxa7 {[%clk 0:01:44.2]} 27... Rc2 {[%clk
0:01:18.4]} 28. Bd5 {[%clk 0:01:41.1]} 28... Ne5 {[%clk 0:01:15.2]} 29. h3
{[%clk 0:01:30.4]} 29... Kg7 {[%clk 0:01:10.6]} 30. Rb7 {[%clk 0:01:27.3]} 30...
Rd2 {[%clk 0:00:56.2]} 31. Bb3 {[%clk 0:01:23.4]} 31... Rd6 {[%clk 0:00:53.2]}
32. Kg2 {[%clk 0:01:11.7]} 32... Rfd8 {[%clk 0:00:47]} 33. f4 {[%clk 0:01:00.1]}
33... R8d7 {[%clk 0:00:39.9]} 34. Rxd7 {[%clk 0:00:39.4]} 34... Nxd7 {[%clk
0:00:41.8]} 35. Rd1 {[%clk 0:00:38.5]} 35... Rxd1 {[%clk 0:00:41.6]} 36. Bxd1
{[%clk 0:00:40.4]} 36... Kf8 {[%clk 0:00:40.5]} 37. Kf3 {[%clk 0:00:39.2]} 37...
Nc5 {[%clk 0:00:40]} 38. Bc2 {[%clk 0:00:38]} 38... Na6 {[%clk 0:00:40.3]} 39.
Ke3 {[%clk 0:00:34.7]} 39... h6 {[%clk 0:00:36.3]} 40. Kd4 {[%clk 0:00:35.4]}
40... Ke7 {[%clk 0:00:34.9]} 41. Bb3 {[%clk 0:00:35.8]} 41... Nc7 {[%clk
0:00:34]} 42. Bc4 {[%clk 0:00:32.8]} 42... Kf8 {[%clk 0:00:34.6]} 43. a4 {[%clk
0:00:21.4]} 43... Ke7 {[%clk 0:00:35.6]} 44. Kc3 {[%clk 0:00:21.4]} 44... Ne8
{[%clk 0:00:30.7]} 45. Kd4 {[%clk 0:00:17.9]} 45... Nc7 {[%clk 0:00:31.4]} 46.
g4 {[%clk 0:00:18.6]} 46... Kf8 {[%clk 0:00:31.4]} 47. h4 {[%clk 0:00:19.8]}
47... Kg7 {[%clk 0:00:27]} 48. g5 {[%clk 0:00:18.4]} 48... fxg5 {[%clk
0:00:15.6]} 49. fxg5 {[%clk 0:00:20.3]} 49... hxg5 {[%clk 0:00:17.3]} 50. hxg5
{[%clk 0:00:21.2]} 50... f6 {[%clk 0:00:18.8]} 51. gxf6+ {[%clk 0:00:10.3]}
51... Kxf6 {[%clk 0:00:20.7]} 52. Bd3 {[%clk 0:00:11.9]} 52... Ke7 {[%clk
0:00:11.7]} 53. Ke5 {[%clk 0:00:13.1]} 53... Ne8 {[%clk 0:00:12.9]} 54. Kd5
{[%clk 0:00:09.2]} 54... Nf6+ {[%clk 0:00:07.5]} 55. Kc6 {[%clk 0:00:09.3]}
55... Nd7 {[%clk 0:00:09]} 56. Bc2 {[%clk 0:00:06.1]} 56... Kd8 {[%clk
0:00:07.8]} 57. Kd6 {[%clk 0:00:06.3]} 57... Ke8 {[%clk 0:00:04.1]} 58. a5
{[%clk 0:00:03.9]} 1-0

[Event "*** Titled Tuesday Blitz"]
[Site "Chess.com"]
[Date "2018.01.02"]
[Round "10"]
[White "Al_Shima"]
[Black "DiogenesSinopeus"]
[Result "0-1"]
[WhiteElo "2209"]
[BlackElo "2393"]
[TimeControl "180+2"]
[EndTime "15:14:52 PST"]
[Termination "DiogenesSinopeus won by resignation"]

1. b3 {[%clk 0:03:01.8]} 1... e5 {[%clk 0:02:59.5]} 2. Bb2 {[%clk 0:03:03.7]}
2... Nc6 {[%clk 0:03:00.4]} 3. e3 {[%clk 0:03:05.1]} 3... d5 {[%clk 0:03:01.9]}
4. Bb5 {[%clk 0:03:06.5]} 4... Bd6 {[%clk 0:03:03.4]} 5. f4 {[%clk 0:03:07.9]}
5... Qh4+ {[%clk 0:03:05]} 6. g3 {[%clk 0:03:08.8]} 6... Qe7 {[%clk 0:03:06.6]}
7. Nf3 {[%clk 0:03:06.9]} 7... f6 {[%clk 0:03:08.1]} 8. fxe5 {[%clk 0:03:07.9]}
8... fxe5 {[%clk 0:03:10]} 9. Nxe5 {[%clk 0:03:07.7]} 9... Bxe5 {[%clk
0:03:09.9]} 10. Bxc6+ {[%clk 0:03:07.4]} 10... Kd8 {[%clk 0:03:11.1]} 11. d4
{[%clk 0:02:54.2]} 11... Bxg3+ {[%clk 0:02:43.4]} 12. hxg3 {[%clk 0:02:54.4]}
12... Qxe3+ {[%clk 0:02:43.5]} 13. Qe2 {[%clk 0:02:53.7]} 13... Qxg3+ {[%clk
0:02:39.1]} 14. Kd2 {[%clk 0:02:43.7]} 14... bxc6 {[%clk 0:02:27.6]} 15. Rf1
{[%clk 0:01:58.9]} 15... Nf6 {[%clk 0:02:22.7]} 16. Nc3 {[%clk 0:01:58.6]} 16...
Qg5+ {[%clk 0:02:17.4]} 17. Qe3 {[%clk 0:01:56.3]} 17... Qxe3+ {[%clk
0:02:17.3]} 18. Kxe3 {[%clk 0:01:58.2]} 18... Bg4 {[%clk 0:02:05.9]} 19. Rf4
{[%clk 0:01:43.4]} 19... Kd7 {[%clk 0:02:01.8]} 20. Rg1 {[%clk 0:01:43.2]} 20...
Rae8+ {[%clk 0:02:02.9]} 21. Kd3 {[%clk 0:01:43]} 21... h5 {[%clk 0:02:00.4]}
22. Na4 {[%clk 0:01:39.8]} 22... Ne4 {[%clk 0:01:57.8]} 23. Nc5+ {[%clk
0:01:38]} 23... Nxc5+ {[%clk 0:01:52.2]} 24. dxc5 {[%clk 0:01:39.9]} 24... Re7
{[%clk 0:01:53.6]} 25. Bd4 {[%clk 0:01:30.5]} 25... Rhe8 {[%clk 0:01:47.7]} 26.
c4 {[%clk 0:01:00.8]} 26... g6 {[%clk 0:01:38]} 27. Rf6 {[%clk 0:00:54.3]} 27...
a5 {[%clk 0:01:24.9]} 28. cxd5 {[%clk 0:00:53.4]} 28... cxd5 {[%clk 0:01:21.2]}
29. c6+ {[%clk 0:00:52.9]} 29... Kc8 {[%clk 0:01:21.9]} 30. Bc3 {[%clk
0:00:23.3]} 30... Re6 {[%clk 0:00:56.7]} 31. Rxe6 {[%clk 0:00:18.7]} 31... Rxe6
{[%clk 0:00:57.5]} 32. Bxa5 {[%clk 0:00:20.6]} 32... Rxc6 {[%clk 0:00:58.5]} 33.
Kd4 {[%clk 0:00:20.8]} 33... Ra6 {[%clk 0:00:58.1]} 34. b4 {[%clk 0:00:21.2]}
34... c6 {[%clk 0:00:48.5]} 35. Kc5 {[%clk 0:00:22.1]} 35... Kd7 {[%clk
0:00:48.4]} 36. Rf1 {[%clk 0:00:22.7]} 36... Bf5 {[%clk 0:00:48.4]} 37. a4
{[%clk 0:00:21.1]} 37... h4 {[%clk 0:00:47.7]} 38. Rf3 {[%clk 0:00:21]} 38... h3
{[%clk 0:00:48.3]} 39. Rf2 {[%clk 0:00:22.4]} 39... Ke6 {[%clk 0:00:46.1]} 40.
Kd4 {[%clk 0:00:22.9]} 40... g5 {[%clk 0:00:44]} 41. Ra2 {[%clk 0:00:22.8]}
41... g4 {[%clk 0:00:42.9]} 42. Bc7 {[%clk 0:00:23.7]} 42... Ra7 {[%clk
0:00:37.8]} 43. Bf4 {[%clk 0:00:23.3]} 43... Rg7 {[%clk 0:00:36]} 44. Bg3 {[%clk
0:00:24.5]} 44... Bb1 {[%clk 0:00:30.7]} 45. Re2+ {[%clk 0:00:24.9]} 45... Kd7
{[%clk 0:00:30.9]} 46. a5 {[%clk 0:00:26.1]} 46... Rf7 {[%clk 0:00:20.4]} 47. a6
{[%clk 0:00:19.1]} 47... Rf3 {[%clk 0:00:21.3]} 48. a7 {[%clk 0:00:18.3]} 48...
Ra3 {[%clk 0:00:22.3]} 49. Bb8 {[%clk 0:00:17.6]} 49... Be4 {[%clk 0:00:17.5]}
50. Kc5 {[%clk 0:00:15.9]} 50... g3 {[%clk 0:00:14.2]} 51. Bxg3 {[%clk
0:00:15.8]} 51... Rxa7 {[%clk 0:00:15.7]} 52. Rf2 {[%clk 0:00:14.1]} 52... Ra3
{[%clk 0:00:16.6]} 53. Be5 {[%clk 0:00:14.4]} 53... Ke6 {[%clk 0:00:17.1]} 54.
Bc7 {[%clk 0:00:13.9]} 54... Rc3+ {[%clk 0:00:17.7]} 55. Kb6 {[%clk 0:00:15.1]}
55... d4 {[%clk 0:00:18]} 56. Rd2 {[%clk 0:00:14.2]} 56... d3 {[%clk 0:00:18.9]}
57. Bf4 {[%clk 0:00:12.8]} 57... Rc2 {[%clk 0:00:19.7]} 58. Rd1 {[%clk
0:00:12.4]} 58... Kf5 {[%clk 0:00:21.1]} 59. Bc7 {[%clk 0:00:12.8]} 59... d2
{[%clk 0:00:18.3]} 60. Bd6 {[%clk 0:00:11.5]} 60... Bf3 {[%clk 0:00:19.5]} 61.
Rxd2 {[%clk 0:00:11.3]} 61... Rxd2 {[%clk 0:00:20.9]} 62. Bc7 {[%clk 0:00:13.2]}
62... Rc2 {[%clk 0:00:21.5]} 63. Bg3 {[%clk 0:00:13.5]} 63... h2 {[%clk
0:00:22.6]} 64. Bxh2 {[%clk 0:00:14.8]} 64... Rxh2 {[%clk 0:00:23.9]} 65. b5
{[%clk 0:00:16.6]} 65... Rb2 {[%clk 0:00:24.8]} 66. Kc5 {[%clk 0:00:17.4]} 66...
Rxb5+ {[%clk 0:00:24.7]} 0-1